bitfinex-derivatives/quotes_BTCF0:USTF0_20250313
["timestamp","ask_amount","ask_price","bid_price","bid_amount"]
[1741826407665,0.00017892,83829.0,83828.0,0.50445632]
[1741826408170,0.00017892,83829.0,83828.0,0.71849629]
[1741826408475,0.06277892,83829.0,83828.0,0.71849629]
[1741826408773,0.00017892,83829.0,83828.0,0.71849629]
[1741826408978,2e-08,83829.0,83828.0,1.18648835]
[1741826409272,0.24937575,83870.0,83857.0,0.119272]
[1741826409465,0.0649,83869.0,83857.0,0.56336]
[1741826409659,0.0649,83869.0,83868.0,0.1192564]
[1741826409864,0.184155,83869.0,83868.0,0.1192564]
[1741826410163,0.184155,83869.0,83867.0,0.12336]
[1741826410164,0.1192564,83868.0,83867.0,0.0652]
[1741826410365,0.1192664,83861.0,83860.0,0.00017892]
[1741826410763,0.1182664,83861.0,83860.0,0.00017892]
[1741826411159,0.3953664,83861.0,83860.0,0.00017892]
[1741826411373,0.1192706,83858.0,83857.0,0.001]
[1741826412773,0.25515457,83858.0,83857.0,0.001]
[1741826412962,0.1192806,83851.0,83850.0,0.21403997]
[1741826413973,0.25847488,83851.0,83850.0,0.21403997]
[1741826414779,0.26247488,83851.0,83850.0,0.001]
[1741826415366,0.26247488,83851.0,83841.0,0.1836934]
[1741826415367,0.0596457,83844.0,83843.0,0.1192857]
[1741826415574,0.0586457,83844.0,83843.0,0.304072]
[1741826415873,0.0586457,83844.0,83843.0,0.368472]
[1741826416374,0.0576457,83844.0,83843.0,0.368472]
[1741826416570,0.0576457,83844.0,83843.0,0.2491857]
[1741826416871,0.1857457,83844.0,83843.0,0.2491857]
[1741826417067,0.1857457,83844.0,83843.0,0.1299]
[1741826417274,0.1977457,83844.0,83843.0,0.0654]
[1741826418073,0.1977457,83844.0,83843.0,0.184692]
[1741826418274,0.1401,83844.0,83843.0,0.184692]
[1741826418478,0.2593905,83844.0,83843.0,0.184692]
[1741826418683,0.0749,83844.0,83843.0,0.184692]
[1741826418979,0.1941905,83844.0,83843.0,0.184692]
[1741826419778,0.1941905,83844.0,83843.0,0.0654]
[1741826420077,0.1941905,83844.0,83843.0,0.184692]
[1741826427987,0.1941905,83844.0,83843.0,0.0654]
[1741826428388,0.1193119,83829.0,83828.0,0.21403997]
[1741826428682,0.1193119,83829.0,83828.0,0.33335327]
[1741826428882,0.1193119,83829.0,83828.0,0.21403997]
[1741826429287,0.13110672,83829.0,83828.0,0.21403997]
[1741826429775,0.14560304,83829.0,83828.0,0.21403997]
[1741826429971,0.1203119,83829.0,83828.0,0.21403997]
[1741826430387,0.1203119,83829.0,83828.0,0.33335327]
[1741826430575,0.1203119,83829.0,83828.0,0.21403997]
[1741826430975,0.001,83829.0,83825.0,0.1224]
[1741826431171,0.1193162,83826.0,83825.0,0.1224]
[1741826431385,0.1193162,83826.0,83825.0,0.2417176]
[1741826431883,0.001,83829.0,83827.0,0.1193147]
[1741826432087,0.0596383,83854.0,83836.0,0.1193019]
[1741826432277,0.1192927,83843.0,83836.0,0.5026219]
[1741826432472,0.1192927,83843.0,83836.0,0.6251219]
[1741826432677,0.0596434,83847.0,83836.0,0.6251219]
[1741826432878,0.0601,83848.0,83836.0,0.3651219]
[1741826432879,0.1192986,83839.0,83836.0,0.3651219]
[1741826433080,0.11947942,83837.0,83836.0,0.3651219]
[1741826433380,0.00417892,83837.0,83836.0,0.3651219]
[1741826434089,0.12347942,83837.0,83836.0,0.3651219]
[1741826434390,0.00717892,83837.0,83836.0,0.37690089]
[1741826434782,0.12647942,83837.0,83836.0,0.37690089]
[1741826434991,0.00717892,83837.0,83836.0,0.37690089]
[1741826435879,0.2222,83873.0,83836.0,0.71759899]
[1741826436181,0.0621,83869.0,83850.0,0.14739612]
[1741826436488,0.0596262,83871.0,83863.0,0.1192635]
[1741826436788,0.24937575,83874.0,83863.0,0.25444837]
[1741826437089,0.21806436,83864.0,83863.0,0.50444837]
[1741826437491,0.004,83864.0,83863.0,0.63974837]
[1741826437677,0.00017892,83872.0,83871.0,0.1192521]
[1741826437878,0.00017892,83872.0,83871.0,0.3692521]
[1741826438789,0.11942962,83872.0,83871.0,0.4945521]
[1741826438993,0.12642962,83872.0,83871.0,0.4955521]
[1741826439891,0.15352001,83873.0,83871.0,0.5555521]
[1741826440090,0.15352001,83873.0,83872.0,0.1192507]
[1741826440289,0.1192328,83885.0,83884.0,0.1192337]
[1741826440486,0.1192328,83885.0,83884.0,0.2425937]
[1741826441297,0.1192328,83885.0,83884.0,0.3702937]
[1741826441791,0.1192328,83885.0,83884.0,0.3712937]
[1741826441996,0.1819328,83885.0,83884.0,0.3712937]
[1741826443287,0.1819328,83885.0,83884.0,0.3722937]
[1741826444891,0.0627,83885.0,83884.0,0.3722937]
[1741826445295,0.1192274,83889.0,83888.0,0.119228]
[1741826446389,0.00017892,83893.0,83892.0,0.1192223]
[1741826446581,0.00017892,83893.0,83892.0,0.5192223]
[1741826446776,0.00017892,83893.0,83892.0,0.6450223]
[1741826446984,2e-08,83893.0,83892.0,0.6450223]
[1741826447178,2e-08,83893.0,83892.0,0.98422815]
[1741826447384,2e-08,83893.0,83892.0,1.15222021]
[1741826448192,2e-08,83893.0,83892.0,0.93222021]
[1741826448690,2e-08,83893.0,83892.0,1.18222021]
[1741826449590,2e-08,83893.0,83892.0,1.18322021]
[1741826449793,2e-08,83893.0,83892.0,1.33322021]
[1741826450385,2e-08,83893.0,83892.0,1.33222021]
[1741826451682,0.0649,83915.0,83914.0,0.119191]
[1741826451890,0.0649,83915.0,83914.0,0.242431]
[1741826452284,0.119169,83932.0,83914.0,0.39324]
[1741826452589,0.1831782,83923.0,83922.0,0.1191797]
[1741826452789,0.064,83923.0,83922.0,0.1191797]
[1741826453480,0.064,83923.0,83922.0,0.3591797]
[1741826453685,0.0644,83929.0,83928.0,0.1191711]
[1741826453997,0.00017881,83931.0,83928.0,0.12324]
[1741826454186,0.00017881,83931.0,83930.0,0.1191683]
[1741826454387,0.00017881,83931.0,83930.0,0.1796683]
[1741826455890,0.11934571,83931.0,83930.0,0.1796683]
[1741826456196,0.11934571,83931.0,83930.0,0.1806683]
[1741826456392,0.11934571,83931.0,83930.0,0.001]
[1741826456599,0.24344571,83931.0,83930.0,0.001]
[1741826456788,0.24344571,83931.0,83930.0,0.002]
[1741826457694,0.24344571,83931.0,83930.0,0.1211683]
[1741826458095,0.24344571,83931.0,83930.0,0.002]
[1741826459201,0.24344571,83931.0,83930.0,0.1211683]
[1741826459897,0.12427881,83931.0,83930.0,0.1211683]
[1741826460199,0.06307881,83931.0,83930.0,0.1816683]
[1741826460599,0.18224571,83931.0,83930.0,0.1211683]
[1741826461204,0.18224571,83931.0,83930.0,0.1816683]
[1741826462000,0.18224571,83931.0,83930.0,0.002]
[1741826462301,0.06307881,83931.0,83930.0,0.1211683]
[1741826463493,0.06307881,83931.0,83930.0,0.2462683]
[1741826464409,0.06307881,83931.0,83930.0,0.4762683]
[1741826465202,0.00017881,83931.0,83930.0,0.5462683]
[1741826465986,0.00017881,83931.0,83930.0,0.5452683]
[1741826466391,0.00017881,83931.0,83930.0,0.5442683]
[1741826466592,0.00017881,83931.0,83930.0,0.5452683]
[1741826468092,0.00017881,83931.0,83930.0,0.7752683]
[1741826468393,0.00017881,83931.0,83930.0,1.09441449]
[1741826469398,0.00017881,83931.0,83930.0,0.87441449]
[1741826472301,0.125,83947.0,83946.0,0.1191456]
[1741826472496,0.125,83947.0,83942.0,0.0595749]
[1741826472497,0.2441442,83947.0,83942.0,0.0595749]
[1741826472704,0.1191484,83944.0,83943.0,0.12316]
[1741826472999,0.0595809,83936.0,83935.0,0.1191605]
[1741826473199,0.1191598,83936.0,83935.0,0.12316]
[1741826473500,0.11793067,83931.0,83930.0,0.40377166]
[1741826473701,0.11793067,83931.0,83930.0,0.52213996]
[1741826473913,0.11793067,83931.0,83930.0,0.40297166]
[1741826474401,0.11693067,83931.0,83930.0,0.40297166]
[1741826474601,0.17683067,83931.0,83930.0,0.40297166]
[1741826474905,0.0599,83931.0,83929.0,0.21273238]
[1741826475092,0.1799683,83930.0,83929.0,0.21273238]
[1741826475293,0.0608,83930.0,83929.0,0.33190208]
[1741826476008,0.1789683,83930.0,83929.0,0.33190208]
[1741826476302,0.0598,83930.0,83929.0,0.33190208]
[1741826476688,0.1789683,83930.0,83929.0,0.33190208]
[1741826476893,0.1789683,83930.0,83929.0,0.33290208]
[1741826477103,0.1789683,83930.0,83929.0,0.21373238]
[1741826477290,0.19252489,83930.0,83929.0,0.21373238]
[1741826477697,0.1789683,83930.0,83929.0,0.21373238]
[1741826478199,0.19248805,83930.0,83929.0,0.33290208]
[1741826478402,0.19248805,83930.0,83929.0,0.21373238]
[1741826478596,0.19248805,83930.0,83929.0,0.33290208]
[1741826479608,0.19249201,83930.0,83929.0,0.33290208]
[1741826479804,0.07332371,83930.0,83929.0,0.33290208]
[1741826479999,0.19249201,83930.0,83929.0,0.33290208]
[1741826480299,0.07332371,83930.0,83929.0,0.33290208]
[1741826480498,0.07332371,83930.0,83929.0,0.39230208]
[1741826480701,0.0598,83930.0,83929.0,0.39230208]
[1741826480898,0.0598,83930.0,83929.0,0.45490208]
[1741826481104,0.0598,83930.0,83929.0,0.2421697]
[1741826481401,0.1789683,83930.0,83929.0,0.2421697]
[1741826481798,0.1789683,83930.0,83929.0,0.1795697]
[1741826484104,0.1789683,83930.0,83929.0,0.001]
[1741826484308,0.19250964,83930.0,83929.0,0.001]
[1741826484708,0.1191711,83928.0,83927.0,0.35473266]
[1741826484911,0.13271244,83928.0,83927.0,0.35473266]
[1741826485413,0.26061244,83928.0,83927.0,0.35473266]
[1741826485609,0.26657201,83928.0,83927.0,0.35473266]
[1741826485807,0.26161244,83928.0,83927.0,0.47390526]
[1741826486002,0.26161244,83928.0,83927.0,0.35473266]
[1741826486513,0.26161244,83928.0,83927.0,0.00017869]
[1741826488607,0.2480711,83928.0,83927.0,0.00017869]
[1741826488911,0.2616519,83928.0,83927.0,0.00017869]
[1741826489213,0.2480711,83928.0,83927.0,0.00017869]
[1741826489407,0.29843934,83928.0,83922.0,0.21340771]
[1741826489610,0.1191782,83923.0,83922.0,0.21340771]
[1741826489810,0.1191782,83923.0,83920.0,0.21340771]
[1741826489811,0.13275769,83923.0,83920.0,0.21340771]
[1741826490011,0.1191811,83921.0,83916.0,0.28454362]
[1741826490217,0.1191868,83917.0,83916.0,0.17416952]
[1741826490515,0.1191939,83912.0,83911.0,0.35455397]
[1741826490706,0.13277339,83912.0,83911.0,0.35455397]
[1741826491303,0.1191939,83912.0,83911.0,0.35455397]
[1741826493704,0.1191939,83912.0,83911.0,0.35755397]
[1741826493907,0.1191939,83912.0,83911.0,0.003]
[1741826494615,0.062,83916.0,83911.0,0.003]
[1741826494825,0.062,83916.0,83915.0,0.1191896]
[1741826495210,0.14240782,83918.0,83917.0,0.1191868]
[1741826495516,0.14240782,83918.0,83917.0,0.2423868]
[1741826495720,0.17800978,83923.0,83922.0,0.1191797]
[1741826495918,0.00017869,83925.0,83924.0,0.1191768]
[1741826496119,0.0647,83936.0,83927.0,0.1191726]
[1741826496318,0.0647,83936.0,83927.0,0.2423726]
[1741826496716,0.19777356,83928.0,83927.0,0.4923726]
[1741826497117,0.1191549,83940.0,83939.0,0.1191541]
[1741826497323,0.1191549,83940.0,83939.0,0.2423541]
[1741826499323,0.1211549,83940.0,83939.0,0.2433541]
[1741826499627,0.002,83940.0,83939.0,0.2433541]
[1741826499927,0.1211541,83940.0,83939.0,0.2443541]
[1741826500127,0.1820541,83940.0,83939.0,0.2443541]
[1741826500620,0.1820541,83940.0,83939.0,0.1252]
[1741826501017,0.1820541,83940.0,83939.0,0.002]
[1741826502017,0.1820541,83940.0,83939.0,0.1211555]
[1741826502224,0.1211541,83940.0,83939.0,0.1211555]
[1741826503423,0.002,83940.0,83939.0,0.1211555]
[1741826504827,0.1211541,83940.0,83939.0,0.1211555]
[1741826509732,0.1827541,83940.0,83939.0,0.002]
[1741826510120,0.1827541,83940.0,83939.0,0.1211555]
[1741826511729,0.1827541,83940.0,83939.0,0.002]
[1741826514124,0.3327541,83940.0,83931.0,0.00017869]
[1741826514422,0.1191655,83932.0,83931.0,0.00017869]
[1741826514617,0.06420001,83940.0,83938.0,0.1191569]
[1741826514824,0.0636,83940.0,83939.0,0.1836555]
[1741826515031,0.002,83940.0,83939.0,0.3070555]
[1741826515333,0.1211541,83940.0,83939.0,0.1879]
[1741826515937,0.1211541,83940.0,83939.0,0.3070555]
[1741826516135,0.1794541,83940.0,83939.0,0.1284]
[1741826516428,0.2395541,83940.0,83939.0,0.0645]
[1741826516633,0.25143189,83940.0,83939.0,0.0645]
[1741826516933,0.25143189,83940.0,83939.0,0.1275]
[1741826517127,0.2395541,83940.0,83939.0,0.2466555]
[1741826517317,0.1774541,83940.0,83939.0,0.2466555]
[1741826517516,0.1794541,83940.0,83939.0,0.2486555]
[1741826519126,0.1794541,83940.0,83939.0,0.1295]
[1741826519424,0.19135696,83940.0,83939.0,0.1295]
[1741826520720,0.19135696,83940.0,83939.0,0.002]
[1741826521035,0.31451696,83940.0,83939.0,0.002]
[1741826522634,0.1794541,83940.0,83939.0,0.1211555]
[1741826523218,0.1794541,83940.0,83939.0,0.1822555]
[1741826525634,0.1794541,83940.0,83939.0,0.0631]
[1741826526034,0.1794541,83940.0,83939.0,0.002]
[1741826526235,0.1794541,83940.0,83931.0,0.00017869]
[1741826526236,0.07377636,83940.0,83931.0,0.00017869]
[1741826526432,0.1191655,83932.0,83931.0,0.00017869]
[1741826526932,0.1191655,83932.0,83931.0,0.11934559]
[1741826527135,0.1191655,83932.0,83931.0,0.00017869]
[1741826527332,0.2410655,83932.0,83931.0,0.00017869]
[1741826527531,0.2410655,83932.0,83931.0,0.00117869]
[1741826528039,0.25449686,83932.0,83931.0,0.00117869]
[1741826529229,0.25449686,83932.0,83931.0,0.00017869]
[1741826529431,0.25749686,83932.0,83931.0,0.00117869]
[1741826529637,0.2440655,83932.0,83931.0,0.00117869]
[1741826530748,0.2440655,83932.0,83892.0,0.059611]
[1741826530749,0.1192052,83904.0,83892.0,0.059611]
[1741826531036,0.1192052,83904.0,83883.0,1.82700856]
[1741826531037,0.1192024,83910.0,83909.0,0.0595975]
[1741826531638,0.1191942,83912.0,83911.0,0.1191924]
[1741826532040,0.0595956,83914.0,83910.0,0.0635]
[1741826532255,0.0595956,83914.0,83910.0,0.1273]
[1741826532256,0.1780953,83911.0,83910.0,0.1273]
[1741826532829,0.1192052,83904.0,83903.0,0.004]
[1741826533028,0.1192052,83904.0,83903.0,0.0675]
[1741826533245,0.2368052,83904.0,83903.0,0.0675]
[1741826533429,0.2368052,83904.0,83903.0,0.0635]
[1741826533633,0.2358052,83904.0,83903.0,0.0635]
[1741826534130,0.2338052,83904.0,83903.0,0.1827067]
[1741826534335,0.2338052,83904.0,83903.0,0.0665]
[1741826534742,0.2338052,83904.0,83903.0,0.0705]
[1741826535143,0.2138052,83904.0,83903.0,0.0705]
[1741826536143,0.2138052,83904.0,83903.0,0.007]
[1741826536537,0.2138052,83904.0,83903.0,0.004]
[1741826536739,0.2188052,83904.0,83903.0,0.004]
[1741826537335,0.2188052,83904.0,83893.0,0.0594]
[1741826537639,0.1788495,83886.0,83885.0,0.1192294]
[1741826538152,0.0586158,83886.0,83885.0,0.1192294]
[1741826538643,0.0596144,83888.0,83884.0,0.0637]
[1741826538644,0.1192322,83885.0,83884.0,0.0637]
[1741826538850,0.2456322,83885.0,83884.0,0.0637]
[1741826539238,0.1824322,83885.0,83884.0,0.0637]
[1741826539741,0.1814322,83885.0,83884.0,0.0637]
[1741826539938,0.1794322,83885.0,83884.0,0.0637]
[1741826540533,0.1192365,83882.0,83881.0,0.0584]
[1741826540739,0.1182365,83882.0,83881.0,0.0584]
[1741826541151,0.1182365,83882.0,83881.0,0.1776379]
[1741826541346,0.1192341,83884.0,83881.0,0.1180185]
[1741826541541,0.0596156,83886.0,83883.0,0.0596175]
[1741826541739,0.1212322,83885.0,83884.0,0.2442322]
[1741826542139,0.1212322,83885.0,83884.0,0.2422322]
[1741826542546,0.1212322,83885.0,83884.0,0.123]
[1741826542753,0.1809322,83885.0,83884.0,0.123]
[1741826542943,0.1819322,83885.0,83884.0,0.123]
[1741826543441,0.1799322,83885.0,83884.0,0.123]
[1741826544252,0.3016322,83885.0,83884.0,0.06]
[1741826546854,0.1192422,83878.0,83877.0,0.00017879]
[1741826548052,0.1192422,83878.0,83877.0,0.00117879]
[1741826551252,0.1232,83890.0,83877.0,0.00117879]
[1741826551458,0.1192408,83880.0,83879.0,0.2384728]
[1741826551647,0.1192408,83880.0,83879.0,0.3578728]
[1741826552359,0.1192408,83880.0,83879.0,0.2386359]
[1741826552757,0.0596182,83883.0,83879.0,0.2396359]
[1741826553062,0.1192393,83881.0,83880.0,0.0596185]
[1741826553361,0.1192393,83881.0,83880.0,0.1786185]
[1741826553945,0.0596179,83883.0,83882.0,0.1192365]
[1741826555745,0.0596139,83889.0,83880.0,0.1786185]
[1741826555947,0.1192299,83887.0,83886.0,0.119228]
[1741826556654,0.1192299,83887.0,83886.0,0.240728]
[1741826557761,0.1212299,83887.0,83886.0,0.240728]
[1741826557951,0.002,83887.0,83886.0,0.240728]
[1741826558363,0.003,83887.0,83886.0,0.240728]
[1741826558959,0.1222294,83887.0,83886.0,0.240728]
[1741826560153,0.1202294,83887.0,83886.0,0.240728]
[1741826560352,0.1232294,83887.0,83886.0,0.240728]
[1741826560655,0.1232294,83887.0,83886.0,0.1215]
[1741826561057,0.1202294,83887.0,83886.0,0.1215]
[1741826561261,0.1232294,83887.0,83886.0,0.2407308]
[1741826561759,0.1222294,83887.0,83886.0,0.2407308]
[1741826562060,0.1232294,83887.0,83886.0,0.2407308]
[1741826563552,0.1222294,83887.0,83886.0,0.2407308]
[1741826564556,0.1232294,83887.0,83886.0,0.2407308]
[1741826565164,0.1222294,83887.0,83886.0,0.2407308]
[1741826565365,0.1232294,83887.0,83886.0,0.1215]
[1741826565564,0.1232294,83887.0,83886.0,0.2407308]
[1741826566959,0.1202294,83887.0,83886.0,0.2407308]
[1741826567155,0.1232294,83887.0,83886.0,0.2407308]
[1741826568565,0.1222294,83887.0,83886.0,0.2407308]
[1741826568769,0.1232294,83887.0,83886.0,0.2407308]
[1741826569063,0.004,83887.0,83886.0,0.2407308]
[1741826569266,0.00017879,83894.0,83886.0,0.2407308]
[1741826569267,0.00017879,83894.0,83886.0,0.1215]
[1741826569467,0.00017879,83894.0,83893.0,0.1192209]
[1741826570162,0.00017879,83894.0,83893.0,0.25288731]
[1741826571163,0.00317879,83894.0,83893.0,0.25288731]
[1741826571365,0.12239819,83894.0,83893.0,0.25288731]
[1741826572061,0.00317879,83894.0,83893.0,0.25288731]
[1741826572264,0.00182141,83894.0,83893.0,0.40288731]
[1741826572469,0.00182141,83894.0,83893.0,0.25288731]
[1741826575359,0.00182141,83894.0,83893.0,0.37604731]
[1741826576064,0.12104081,83894.0,83893.0,0.37604731]
[1741826576867,0.00182141,83894.0,83893.0,0.37604731]
[1741826580968,0.12104081,83894.0,83893.0,0.37600731]
[1741826581164,0.12104081,83894.0,83893.0,0.0592]
[1741826581476,0.00182141,83894.0,83886.0,0.01204235]
[1741826581775,0.00182141,83894.0,83885.0,0.12312]
[1741826581776,0.0596127,83892.0,83891.0,0.1192209]
[1741826582169,0.1192251,83890.0,83887.0,0.41879938]
[1741826582362,0.119228,83888.0,83887.0,0.53722878]
[1741826582763,0.241328,83888.0,83887.0,0.53722878]
[1741826582972,0.23893889,83888.0,83887.0,0.53722878]
[1741826583169,0.23893889,83888.0,83887.0,0.35499938]
[1741826584069,0.23893889,83888.0,83887.0,0.41489938]
[1741826584978,0.23893889,83888.0,83887.0,0.0599]
[1741826586466,0.1192337,83884.0,83883.0,0.00088]
[1741826586776,0.1192422,83878.0,83872.0,0.12312]
[1741826587276,0.1192422,83878.0,83865.0,0.47440304]
[1741826587578,0.1192422,83878.0,83867.0,0.2424178]
[1741826587874,0.1192422,83878.0,83867.0,0.28442606]
[1741826588172,0.1192422,83878.0,83867.0,1e-08]
[1741826588173,0.1192564,83868.0,83867.0,1e-08]
[1741826588368,0.1192564,83868.0,83857.0,0.42599925]
[1741826588369,0.1192706,83858.0,83857.0,0.42679925]
[1741826588561,0.1192706,83858.0,83857.0,0.42599925]
[1741826588764,0.1182706,83858.0,83857.0,0.42599925]
[1741826588959,0.2413906,83858.0,83857.0,0.42599925]
[1741826589165,0.3624906,83858.0,83857.0,0.42599925]
[1741826589366,0.3604906,83858.0,83857.0,0.42599925]
[1741826590174,0.3644906,83858.0,83857.0,0.42599925]
[1741826591070,0.3674906,83858.0,83857.0,0.42699925]
[1741826591678,0.3684906,83858.0,83857.0,0.42699925]
[1741826593171,0.3684906,83858.0,83857.0,0.001]
[1741826593172,0.2453706,83858.0,83857.0,0.001]
[1741826593373,0.2453706,83858.0,83857.0,0.120272]
[1741826593578,0.1291,83858.0,83857.0,0.120272]
[1741826593977,0.1291,83858.0,83857.0,0.299472]
[1741826593978,0.1865706,83858.0,83857.0,0.299472]
[1741826594170,0.2487706,83858.0,83857.0,0.299472]
[1741826597266,0.0673,83858.0,83857.0,0.299472]
[1741826597466,0.008,83858.0,83857.0,0.299472]
[1741826597882,0.1272706,83858.0,83857.0,0.299472]
[1741826598271,0.008,83858.0,83857.0,0.299472]
[1741826599575,0.1272706,83858.0,83857.0,0.1204]
[1741826599875,0.1272706,83858.0,83857.0,0.239672]
[1741826600372,0.1272706,83858.0,83857.0,0.1784]
[1741826600574,0.2485706,83858.0,83857.0,0.1784]
[1741826600972,0.2485706,83858.0,83857.0,0.297672]
[1741826601181,0.2485706,83858.0,83857.0,0.1784]
[1741826601578,0.2485706,83858.0,83857.0,0.1204]
[1741826601777,0.2485706,83858.0,83857.0,0.06]
[1741826601978,0.2485706,83858.0,83857.0,0.001]
[1741826602383,0.2485706,83858.0,83849.0,0.00017879]
[1741826602577,0.119282,83850.0,83849.0,0.00017879]
[1741826603377,0.241882,83850.0,83849.0,0.00017879]
[1741826603985,0.241882,83850.0,83849.0,0.18457879]
[1741826604187,0.243882,83850.0,83849.0,0.30386219]
[1741826605579,0.246882,83850.0,83849.0,0.18457879]
[1741826606984,0.183082,83850.0,83849.0,0.30386219]
[1741826607681,0.124282,83850.0,83849.0,0.30386219]
[1741826608185,0.005,83850.0,83849.0,0.30386219]
[1741826608483,0.005,83850.0,83849.0,0.56794617]
[1741826608781,0.005,83850.0,83849.0,0.32794617]
[1741826609087,0.124282,83850.0,83849.0,0.32794617]
[1741826610575,0.124282,83850.0,83849.0,0.45110617]
[1741826610780,0.124282,83850.0,83849.0,0.43932246]
[1741826611181,0.124282,83850.0,83849.0,0.32003906]
[1741826611383,0.186582,83850.0,83849.0,0.32003906]
[1741826612184,0.186582,83850.0,83849.0,0.43932246]
[1741826612385,0.186582,83850.0,83849.0,0.3199004]
[1741826613490,0.186582,83850.0,83849.0,0.1967404]
[1741826613877,0.186582,83850.0,83849.0,0.3160238]
[1741826614077,0.124282,83850.0,83849.0,0.1967404]
[1741826614484,0.185882,83850.0,83849.0,0.1357404]
[1741826614794,0.185882,83850.0,83849.0,0.12357879]
[1741826615093,0.185882,83850.0,83849.0,0.13575096]
[1741826615592,0.0596507,83837.0,83819.0,1.3194228]
[1741826615776,0.119309,83831.0,83830.0,0.1812]
[1741826615975,0.12,83836.0,83830.0,0.1812]
[1741826616179,0.0596507,83837.0,83834.0,0.0596519]
[1741826616380,0.0596507,83837.0,83834.0,0.1789567]
[1741826616381,0.1777033,83835.0,83834.0,0.1789567]
[1741826617184,0.1777033,83835.0,83834.0,0.0596519]
[1741826617793,0.1617033,83835.0,83834.0,0.0596519]
[1741826618493,0.1617033,83835.0,83834.0,0.0626519]
[1741826619191,0.1213033,83835.0,83834.0,0.0596519]
[1741826619495,0.1243033,83835.0,83834.0,0.0596519]
[1741826621885,0.119309,83831.0,83830.0,0.0622]
[1741826622686,0.119309,83831.0,83830.0,0.1815105]
[1741826624392,0.120309,83831.0,83830.0,0.0622]
[1741826626297,0.120309,83831.0,83830.0,0.1815105]
[1741826626602,0.001,83831.0,83830.0,0.1815105]
[1741826627099,0.120309,83831.0,83830.0,0.1815105]
[1741826627489,0.120309,83831.0,83830.0,0.19386666]
[1741826628489,0.120309,83831.0,83830.0,0.01235616]
[1741826628697,0.120309,83831.0,83830.0,0.13166666]
[1741826630198,0.120309,83831.0,83830.0,0.18896666]
[1741826631197,0.120309,83831.0,83830.0,0.1887459]
[1741826633192,0.120309,83831.0,83830.0,0.18874175]
[1741826633392,0.120309,83831.0,83830.0,0.24764175]
[1741826634101,0.001,83831.0,83830.0,0.24764175]
[1741826635198,0.14270408,83842.0,83841.0,0.1192948]
[1741826635396,0.14270408,83842.0,83841.0,0.25458605]
[1741826635786,0.0001789,83844.0,83843.0,0.119292]
[1741826635992,0.0001789,83844.0,83843.0,0.20142325]
[1741826636699,0.0001789,83844.0,83843.0,0.13142325]
[1741826636904,0.0001789,83844.0,83843.0,0.39142325]
[1741826638404,0.0001789,83844.0,83843.0,0.40314825]
[1741826640090,0.0001789,83844.0,83843.0,0.391017]
[1741826640295,0.0001789,83844.0,83843.0,0.131017]
[1741826640697,0.0001789,83844.0,83843.0,0.254137]
[1741826641304,0.0001789,83844.0,83843.0,0.274137]
[1741826641305,0.1194694,83844.0,83843.0,0.274137]
[1741826641807,0.0001789,83844.0,83843.0,0.274137]
[1741826643997,0.1194694,83844.0,83843.0,0.02]
[1741826644311,0.1194694,83844.0,83841.0,0.0614]
[1741826644312,0.1192934,83842.0,83841.0,0.1806948]
[1741826645120,0.2458934,83842.0,83841.0,0.1806948]
[1741826645815,0.2478934,83842.0,83841.0,0.1806948]
[1741826646008,0.1286,83842.0,83841.0,0.1806948]
[1741826646396,0.2478934,83842.0,83841.0,0.1806948]
[1741826646599,0.2508934,83842.0,83841.0,0.1806948]
[1741826647408,0.2468934,83842.0,83841.0,0.1806948]
[1741826647914,0.001,83842.0,83841.0,0.1806948]
[1741826648114,0.1837925,83843.0,83842.0,0.1192934]
[1741826648304,0.2458925,83843.0,83842.0,0.1830934]
[1741826649405,0.1266,83843.0,83816.0,0.059665]
[1741826649716,0.1266,83843.0,83810.0,0.2163]
[1741826649717,0.1193119,83829.0,83825.0,0.12308]
[1741826649914,0.1193119,83829.0,83824.0,0.40720806]
[1741826650113,0.1193119,83829.0,83824.0,0.28492806]
[1741826650312,0.1193119,83829.0,83824.0,0.28412806]
[1741826650703,0.1784119,83829.0,83824.0,0.28412806]
[1741826650906,0.19058697,83829.0,83828.0,0.2154177]
[1741826651511,0.19058697,83829.0,83828.0,0.2134177]
[1741826653626,0.1193133,83828.0,83814.0,0.00084]
[1741826653922,0.1193304,83816.0,83812.0,0.1193354]
[1741826654107,0.0596663,83815.0,83811.0,0.1193363]
[1741826654303,0.1193361,83812.0,83811.0,0.1193345]
[1741826655420,0.1183361,83812.0,83811.0,0.1193345]
[1741826655611,0.1143361,83812.0,83811.0,0.1193345]
[1741826655812,0.1143361,83812.0,83811.0,0.1825345]
[1741826656619,0.1153361,83812.0,83811.0,0.1895345]
[1741826657123,0.1153361,83812.0,83811.0,0.1955345]
[1741826657422,0.1143361,83812.0,83811.0,0.1905345]
[1741826657816,0.1143361,83812.0,83811.0,0.0712]
[1741826658221,0.1143361,83812.0,83811.0,0.0672]
[1741826658526,0.1143361,83812.0,83811.0,0.1865375]
[1741826660119,0.1223671,83814.0,83813.0,0.1193347]
[1741826660424,0.1853671,83814.0,83813.0,0.1193347]
[1741826661416,0.1853671,83814.0,83813.0,0.1233347]
[1741826662310,0.1257,83814.0,83813.0,0.1233347]
[1741826662515,0.0598416,83820.0,83819.0,0.1193261]
[1741826662516,0.0001789,83820.0,83819.0,0.1193261]
[1741826662719,0.0001789,83820.0,83819.0,0.4251461]
[1741826663922,0.0011789,83820.0,83819.0,0.4251461]
[1741826665618,0.1205036,83820.0,83819.0,0.4251461]
[1741826666121,0.0011789,83820.0,83819.0,0.4251461]
[1741826667027,0.1205036,83820.0,83819.0,0.4251461]
[1741826667227,0.0011789,83820.0,83819.0,0.4251461]
[1741826668620,0.1205036,83820.0,83819.0,0.4251461]
[1741826668820,0.1833036,83820.0,83819.0,0.4251461]
[1741826669022,0.1205036,83820.0,83819.0,0.4251461]
[1741826676333,0.1205036,83820.0,83819.0,0.4340876]
[1741826676534,0.1205036,83820.0,83819.0,0.4251461]
[1741826677923,0.0011789,83820.0,83819.0,0.4251461]
[1741826680324,0.1205036,83820.0,83819.0,0.4251461]
[1741826681026,0.0011789,83820.0,83819.0,0.4251461]
[1741826681226,0.0011789,83820.0,83819.0,0.43407644]
[1741826681832,0.0011789,83820.0,83819.0,0.50407644]
[1741826682131,0.14268,83831.0,83830.0,0.1193105]
[1741826682342,0.261989,83831.0,83830.0,0.2423905]
[1741826683031,0.261989,83831.0,83830.0,0.4226905]
[1741826683423,0.124309,83831.0,83830.0,0.4226905]
[1741826683637,0.248509,83831.0,83830.0,0.4226905]
[1741826684029,0.248509,83831.0,83830.0,0.43442774]
[1741826687442,0.248509,83831.0,83830.0,0.44642556]
[1741826687837,0.1292,83831.0,83830.0,0.44642556]